[Event "6th Cattolica Open 2019"]
[Site "Cattolica"]
[Date "2019.06.13"]
[Round "8.2"]
[White "Mareco, Sandro"]
[Black "Dreev, Aleksey"]
[Result "1/2-1/2"]
[ECO "B40"]
[WhiteElo "2643"]
[BlackElo "2657"]
[Annotator "RC"]
[PlyCount "67"]
[EventDate "2019.06.08"]
[EventType "swiss"]
[EventCountry "ITA"]
[SourceTitle "playchess.com"]
[Source "ChessBase"]
[SourceQuality "1"]
[TimeControl "40/5400+30:900+30"]

1. e4 {[%emt 0:00:00]} c5 {[%emt 0:00:00]} 2. Nf3 {[%emt 0:00:00]} e6 {[%emt 0:00:00]} 3. g3 {[%emt 0:01:23]} d5 {[%emt 0:00:16]} 4. exd5 {[%emt 0:00:41]} exd5 {[%emt 0:00:07]} 5. Bg2 {[%emt 0:00:08]} Qe7+ {[%emt 0:00:53]} 6. Kf1 {[%emt 0:03:32]} Nc6 {[%emt 0:03:11]} 7. d4 {[%emt 0:02:00]} Bg4 {[%emt 0:03:05]} 8. c3 {[%emt 0:01:38]} cxd4 {[%emt 0:02:14]} 9. h3 {[%emt 0:00:24]} Bxf3 {[%emt 0:15:52]} 10. Bxf3 {[%emt 0:00:08]} Qf6 {[%emt 0:00:06]} 11. cxd4 {[%emt 0:05:37]} Qxd4 {[%emt 0:12:45]} 12. Kg2 {[%emt 0:01:21]} Bc5 {[%emt 0:03:38]} 13. Qc2 {[%emt 0:11:03]} Bb6 {[%emt 0:06:15]} 14. Be3 {[%emt 0:18:14]} Qf6 {[%emt 0:03:43]} 15. Bxb6 {[%emt 0:00:31]} axb6 {[%emt 0:00:09]} 16. Bxd5 {[%emt 0:00:05]} Nge7 {[%emt 0:01:31]} 17. Be4 {[%emt 0:00:07]} h5 {[%emt 0:02:18]} 18. Nc3 {[%emt 0:00:53]} O-O {[%emt 0:01:38]} 19. Rad1 {[%emt 0:01:13]} h4 {[%emt 0:03:56]} 20. Qe2 {[%emt 0:06:11]} Ra5 {[%emt 0:14:15]} 21. Rd7 {[%emt 0:09:18]} Re5 {[%emt 0:02:03]} 22. Qf3 {[%emt 0:08:07]} Qe6 {[%emt 0:04:59]} 23. Rhd1 {[%emt 0:00:16]} hxg3 {[%emt 0:00:14]} 24. R1d6 {[%emt 0:03:53]} Qc4 {[%emt 0:00:58]} 25. fxg3 {[%emt 0:00:08]} Qc5 {[%emt 0:02:59]} 26. Qf2 {[%emt 0:02:47]} Rb8 {[%emt 0:07:24]} 27. Qd2 {[%emt 0:10:30]} Nf5 {[%emt 0:03:48]} 28. Bxf5 {[%emt 0:03:58]} Rxf5 {[%emt 0:00:02]} 29. Rd5 {[%emt 0:04:50]} Rxd5 {[%emt 0:00:05]} 30. Qxd5 {[%emt 0:00:03]} Ne5 {[%emt 0:00:49]} 31. Rd8+ {[%emt 0:01:52]} Rxd8 {[%emt 0:00:21]} 32. Qxd8+ {[%emt 0:00:03]} Kh7 {[%emt 0:00:09]} 33. Qd5 {[%emt 0:00:10]} Qc7 {[%emt 0:02:50]} 34. Qe4+ {[%emt 0:02:43]} 1/2-1/2

[Event "6th Cattolica Open 2019"]
[Site "Cattolica"]
[Date "2019.06.13"]
[Round "8.5"]
[White "Sonis, Francesco"]
[Black "Repka, Christopher"]
[Result "0-1"]
[ECO "D31"]
[WhiteElo "2494"]
[BlackElo "2482"]
[Annotator "ChessBase"]
[PlyCount "108"]
[EventDate "2019.06.08"]
[EventType "swiss"]
[EventCountry "ITA"]
[SourceTitle "playchess.com"]
[Source "ChessBase"]
[SourceQuality "1"]
[TimeControl "40/5400+30:900+30"]

1. c4 {[%emt 0:00:00]} e6 {[%emt 0:03:00]} 2. Nc3 {[%emt 0:00:00]} d5 {[%emt 0:00:09]} 3. d4 {[%emt 0:00:00]} a6 {[%emt 0:00:03]} 4. cxd5 {[%emt 0:00:00]} exd5 {[%emt 0:00:06]} 5. Bf4 {[%emt 0:00:00]} Be6 {[%emt 0:01:29]} 6. e3 {[%emt 0:00:19]} Bd6 {[%emt 0:00:59]} 7. Bd3 {[%emt 0:02:22]} Bxf4 {[%emt 0:02:09]} 8. exf4 {[%emt 0:00:05]} Ne7 {[%emt 0:00:05]} 9. Nf3 {[%emt 0:01:10]} Qd6 {[%emt 0:00:13]} 10. Qd2 {[%emt 0:01:11]} Nbc6 {[%emt 0:09:27]} 11. O-O {[%emt 0:02:28]} O-O {[%emt 0:00:05]} 12. Rfe1 {[%emt 0:02:56]} Bf5 {[%emt 0:00:42]} 13. g3 {[%emt 0:10:31]} Rfe8 {[%emt 0:03:06]} 14. Re3 {[%emt 0:01:57]} Bg4 {[%emt 0:09:10]} 15. Ne5 {[%emt 0:08:11]} Be6 {[%emt 0:05:02]} 16. Bc2 {[%emt 0:06:44]} Nb4 {[%emt 0:01:57]} 17. Ba4 {[%emt 0:07:31]} b5 {[%emt 0:04:05]} 18. a3 {[%emt 0:04:14]} Nf5 {[%emt 0:07:33]} 19. Re2 {[%emt 0:03:22]} bxa4 {[%emt 0:03:50]} 20. axb4 {[%emt 0:00:08]} Qxb4 {[%emt 0:00:13]} 21. Rxa4 {[%emt 0:00:18]} Qb6 {[%emt 0:00:04]} 22. Qd3 {[%emt 0:05:05]} f6 {[%emt 0:07:02]} 23. Nf3 {[%emt 0:05:19]} Nd6 {[%emt 0:01:02]} 24. Ra2 {[%emt 0:03:33]} a5 {[%emt 0:04:40]} 25. Nh4 {[%emt 0:13:09]} Bg4 {[%emt 0:07:16]} 26. f3 {[%emt 0:02:47]} Rxe2 {[%emt 0:00:44]} 27. Nxe2 {[%emt 0:00:11]} Bd7 {[%emt 0:00:14]} 28. Nc3 {[%emt 0:00:49]} Qb3 {[%emt 0:02:37]} 29. Ng2 {[%emt 0:01:31]} Nb5 {[%emt 0:01:42]} 30. Qd2 {[%emt 0:07:17]} Nxc3 {[%emt 0:04:12]} 31. bxc3 {[%emt 0:00:02]} Qb1+ {[%emt 0:00:06]} 32. Kf2 {[%emt 0:00:34]} a4 {[%emt 0:04:33]} 33. Ne1 {[%emt 0:01:17]} a3 {[%emt 0:02:37]} 34. Qc2 {[%emt 0:01:52]} Bf5 {[%emt 0:02:10]} 35. Qxb1 {[%emt 0:00:02]} Bxb1 {[%emt 0:00:07]} 36. Ra1 {[%emt 0:00:01]} a2 {[%emt 0:00:06]} 37. Ke3 {[%emt 0:00:04]} Ra3 {[%emt 0:00:17]} 38. Kd2 {[%emt 0:00:06]} Rb3 {[%emt 0:00:06]} 39. Nd3 {[%emt 0:00:03]} f5 {[%emt 0:01:20]} 40. h4 {[%emt 0:00:00]} Kf7 {[%emt 0:00:00]} 41. g4 {[%emt 0:01:42]} g6 {[%emt 0:01:36]} 42. g5 {[%emt 0:00:24]} Ke7 {[%emt 0:01:40]} 43. Nb4 {[%emt 0:00:13]} Rb2+ {[%emt 0:00:04]} 44. Kc1 {[%emt 0:00:36]} Rh2 {[%emt 0:00:21]} 45. Nxd5+ {[%emt 0:00:56]} Kd6 {[%emt 0:00:04]} 46. Nf6 {[%emt 0:00:04]} Rxh4 {[%emt 0:01:31]} 47. Kd2 {[%emt 0:00:02]} Rxf4 {[%emt 0:00:21]} 48. Ke3 {[%emt 0:00:07]} Rh4 {[%emt 0:00:04]} 49. Kf2 {[%emt 0:00:11]} Rh2+ {[%emt 0:00:28]} 50. Kg3 {[%emt 0:00:02]} Rc2 {[%emt 0:00:06]} 51. Nxh7 {[%emt 0:00:03]} Ke6 {[%emt 0:02:34]} 52. Nf6 {[%emt 0:00:24]} Rxc3 {[%emt 0:00:12]} 53. Kf4 {[%emt 0:00:14]} Rd3 {[%emt 0:00:21]} 54. d5+ {[%emt 0:00:23]} Rxd5 {[%emt 0:00:14] Ke5+ Kxe5} 0-1

[Event "6th Cattolica Open 2019"]
[Site "Cattolica"]
[Date "2019.06.13"]
[Round "8.6"]
[White "Epishin, Vladimir"]
[Black "Kjartansson, Gudmundur"]
[Result "1-0"]
[ECO "D31"]
[WhiteElo "2564"]
[BlackElo "2459"]
[Annotator "ChessBase"]
[PlyCount "79"]
[EventDate "2019.06.08"]
[EventType "swiss"]
[EventCountry "ITA"]
[SourceTitle "playchess.com"]
[Source "ChessBase"]
[SourceQuality "1"]
[TimeControl "40/5400+30:900+30"]

1. d4 {[%emt 0:00:00]} d5 {[%emt 0:00:00]} 2. c4 {[%emt 0:00:00]} e6 {[%emt 0:00:00]} 3. Nc3 {[%emt 0:00:28]} c6 {[%emt 0:00:00]} 4. e3 {[%emt 0:00:45]} Nf6 {[%emt 0:00:00]} 5. a3 {[%emt 0:02:48]} Nbd7 {[%emt 0:03:44]} 6. Bd2 {[%emt 0:03:14]} Bd6 {[%emt 0:02:44]} 7. c5 {[%emt 0:00:55]} Bc7 {[%emt 0:01:46]} 8. f4 {[%emt 0:00:12]} Ng8 {[%emt 0:10:26]} 9. Nf3 {[%emt 0:01:13]} f6 {[%emt 0:01:36]} 10. e4 {[%emt 0:01:28]} dxe4 {[%emt 0:02:54]} 11. Nxe4 {[%emt 0:01:20]} Ne7 {[%emt 0:01:05]} 12. Bd3 {[%emt 0:02:34]} Nd5 {[%emt 0:03:19]} 13. g3 {[%emt 0:00:11]} Nf8 {[%emt 0:10:17]} 14. Qe2 {[%emt 0:05:38]} Qe7 {[%emt 0:02:25]} 15. O-O-O {[%emt 0:04:22]} Bd7 {[%emt 0:06:35]} 16. Nc3 {[%emt 0:02:25]} Nxc3 {[%emt 0:02:24]} 17. Bxc3 {[%emt 0:00:03]} Qf7 {[%emt 0:02:30]} 18. Nd2 {[%emt 0:06:36]} Ng6 {[%emt 0:04:41]} 19. Ne4 {[%emt 0:00:23]} Ne7 {[%emt 0:01:12]} 20. Ba5 {[%emt 0:02:06]} Bb8 {[%emt 0:01:20]} 21. Qc2 {[%emt 0:00:59]} Nd5 {[%emt 0:01:29]} 22. Rde1 {[%emt 0:00:46]} b6 {[%emt 0:07:01]} 23. Bd2 {[%emt 0:00:21]} Bc7 {[%emt 0:01:36]} 24. f5 {[%emt 0:09:52]} Kf8 {[%emt 0:09:15]} 25. cxb6 {[%emt 0:10:26]} Bxb6 {[%emt 0:04:38]} 26. fxe6 {[%emt 0:07:20]} Bxe6 {[%emt 0:00:07]} 27. Rhf1 {[%emt 0:00:16]} Qd7 {[%emt 0:04:51]} 28. Ng5 {[%emt 0:01:47]} Bg8 {[%emt 0:01:15]} 29. Bf5 {[%emt 0:02:54]} Qd6 {[%emt 0:00:42]} 30. Ne6+ {[%emt 0:02:18]} Kf7 {[%emt 0:00:11]} 31. Bf4 {[%emt 0:04:23]} Nxf4 {[%emt 0:00:16]} 32. Nxf4 {[%emt 0:00:14]} Bxd4 {[%emt 0:01:37]} 33. Be6+ {[%emt 0:05:49]} Kf8 {[%emt 0:00:10]} 34. Bxg8 {[%emt 0:00:14]} Rxg8 {[%emt 0:00:16]} 35. Ne6+ {[%emt 0:00:45]} Kf7 {[%emt 0:00:05]} 36. Ng5+ {[%emt 0:00:57]} Kf8 {[%emt 0:00:09]} 37. Nxh7+ {[%emt 0:00:34]} Kf7 {[%emt 0:00:03]} 38. Ng5+ {[%emt 0:00:12]} Kf8 {[%emt 0:00:05]} 39. Qg6 {[%emt 0:03:41]} Bxb2+ {[%emt 0:01:00]} 40. Kb1 {[%emt 0:00:00]} 1-0

[Event "6th Cattolica Open 2019"]
[Site "Cattolica"]
[Date "2019.06.13"]
[Round "8.7"]
[White "Kharitonov, Alexandr"]
[Black "Le Goff, Ronan"]
[Result "1-0"]
[ECO "D35"]
[WhiteElo "2547"]
[BlackElo "2229"]
[Annotator "RC"]
[PlyCount "111"]
[EventDate "2019.06.08"]
[EventType "swiss"]
[EventCountry "ITA"]
[SourceTitle "playchess.com"]
[Source "ChessBase"]
[SourceQuality "1"]
[TimeControl "40/5400+30:900+30"]

1. d4 {[%emt 0:00:00]} Nf6 {[%emt 0:00:00]} 2. c4 {[%emt 0:00:00]} e6 {[%emt 0:00:00]} 3. Nc3 {[%emt 0:00:00]} d5 {[%emt 0:00:09]} 4. cxd5 {[%emt 0:00:03]} exd5 {[%emt 0:00:08]} 5. Bg5 {[%emt 0:00:15]} Be7 {[%emt 0:00:13]} 6. e3 {[%emt 0:00:19]} c6 {[%emt 0:00:11]} 7. Bd3 {[%emt 0:00:27]} Nbd7 {[%emt 0:00:10]} 8. h3 {[%emt 0:01:00]} Nf8 {[%emt 0:12:32]} 9. Nf3 {[%emt 0:02:00]} Ne6 {[%emt 0:04:56]} 10. Bh4 {[%emt 0:00:18]} g6 {[%emt 0:03:29]} 11. O-O {[%emt 0:00:58]} O-O {[%emt 0:01:21]} 12. Rb1 {[%emt 0:04:11]} a5 {[%emt 0:04:56]} 13. a3 {[%emt 0:00:44]} Ng7 {[%emt 0:01:06]} 14. b4 {[%emt 0:00:43]} axb4 {[%emt 0:03:13]} 15. axb4 {[%emt 0:00:05]} Nf5 {[%emt 0:02:03]} 16. Bg5 {[%emt 0:06:52]} h6 {[%emt 0:06:25]} 17. Bf4 {[%emt 0:02:56]} Bd6 {[%emt 0:07:30]} 18. Bxd6 {[%emt 0:08:53]} Nxd6 {[%emt 0:02:24]} 19. b5 {[%emt 0:00:09]} Nfe4 {[%emt 0:01:34]} 20. Qc2 {[%emt 0:17:23]} Ra3 {[%emt 0:07:11]} 21. Rb3 {[%emt 0:08:33]} Rxb3 {[%emt 0:02:48]} 22. Qxb3 {[%emt 0:00:04]} Qf6 {[%emt 0:02:01]} 23. bxc6 {[%emt 0:05:50]} bxc6 {[%emt 0:01:19]} 24. Be2 {[%emt 0:01:29]} g5 {[%emt 0:02:52]} 25. Nxe4 {[%emt 0:02:58]} Nxe4 {[%emt 0:00:30]} 26. Qb4 {[%emt 0:11:34]} g4 {[%emt 0:02:44]} 27. hxg4 {[%emt 0:00:05]} Bxg4 {[%emt 0:00:12]} 28. Rc1 {[%emt 0:00:12]} Bxf3 {[%emt 0:03:53]} 29. Bxf3 {[%emt 0:01:09]} Ng5 {[%emt 0:00:07]} 30. Bd1 {[%emt 0:05:21]} Ne4 {[%emt 0:00:59]} 31. Qe1 {[%emt 0:01:06]} Ra8 {[%emt 0:00:59]} 32. f3 {[%emt 0:01:43]} Ng5 {[%emt 0:01:54]} 33. Qg3 {[%emt 0:00:17]} Kh8 {[%emt 0:02:20]} 34. Rb1 {[%emt 0:06:39]} Qe7 {[%emt 0:00:31]} 35. Qf4 {[%emt 0:01:27]} Ra3 {[%emt 0:01:18]} 36. Kf2 {[%emt 0:00:41]} Kg7 {[%emt 0:01:58]} 37. Rb6 {[%emt 0:03:13]} Rc3 {[%emt 0:00:30]} 38. Ba4 {[%emt 0:02:48]} Qe6 {[%emt 0:01:53]} 39. Qe5+ {[%emt 0:05:28]} Qxe5 {[%emt 0:00:09]} 40. dxe5 {[%emt 0:00:00]} c5 {[%emt 0:00:00]} 41. Rd6 {[%emt 0:00:30]} d4 {[%emt 0:01:07]} 42. exd4 {[%emt 0:00:21]} Rc4 {[%emt 0:00:09]} 43. Bb5 {[%emt 0:02:28]} Rb4 {[%emt 0:00:37]} 44. Bd3 {[%emt 0:00:41]} cxd4 {[%emt 0:01:29]} 45. Bf5 {[%emt 0:00:19]} h5 {[%emt 0:04:49]} 46. f4 {[%emt 0:01:01]} d3 {[%emt 0:02:59]} 47. Ke3 {[%emt 0:02:07]} Nh7 {[%emt 0:01:11]} 48. Bxd3 {[%emt 0:00:36]} Nf8 {[%emt 0:00:48]} 49. f5 {[%emt 0:00:44]} Rg4 {[%emt 0:00:29]} 50. Be4 {[%emt 0:00:38]} h4 {[%emt 0:00:24]} 51. Kf3 {[%emt 0:02:40]} Rg3+ {[%emt 0:00:18]} 52. Kf4 {[%emt 0:00:04]} Nh7 {[%emt 0:00:39]} 53. f6+ {[%emt 0:00:37]} Kg8 {[%emt 0:00:48]} 54. Rd3 {[%emt 0:00:29]} Rxd3 {[%emt 0:00:41]} 55. Bxd3 {[%emt 0:00:03]} Nf8 {[%emt 0:00:07]} 56. Bf5 {[%emt 0:00:06]} 1-0

[Event "6th Cattolica Open 2019"]
[Site "Cattolica"]
[Date "2019.06.13"]
[Round "8.9"]
[White "Yankelevich, Lev"]
[Black "Corvi, Marco"]
[Result "1-0"]
[ECO "E71"]
[WhiteElo "2484"]
[BlackElo "2253"]
[Annotator "ChessBase"]
[PlyCount "81"]
[EventDate "2019.06.08"]
[EventType "swiss"]
[EventCountry "ITA"]
[SourceTitle "playchess.com"]
[Source "ChessBase"]
[SourceQuality "1"]
[TimeControl "40/5400+30:900+30"]

1. d4 {[%emt 0:00:00]} Nf6 {[%emt 0:00:00]} 2. c4 {[%emt 0:00:00]} g6 {[%emt 0:00:00]} 3. Nc3 {[%emt 0:00:00]} Bg7 {[%emt 0:00:00]} 4. e4 {[%emt 0:00:00]} d6 {[%emt 0:00:00]} 5. h3 {[%emt 0:01:19]} O-O {[%emt 0:01:02]} 6. Be3 {[%emt 0:01:11]} Nc6 {[%emt 0:01:24]} 7. d5 {[%emt 0:03:02]} Nb4 {[%emt 0:00:53]} 8. Nf3 {[%emt 0:02:43]} c6 {[%emt 0:09:34]} 9. Be2 {[%emt 0:04:57]} Nd7 {[%emt 0:10:03]} 10. O-O {[%emt 0:03:35]} Qc7 {[%emt 0:13:56]} 11. Bd4 {[%emt 0:03:14]} Ne5 {[%emt 0:05:23]} 12. Nxe5 {[%emt 0:02:11]} Bxe5 {[%emt 0:00:30]} 13. Bxe5 {[%emt 0:00:49]} dxe5 {[%emt 0:00:02]} 14. a3 {[%emt 0:00:24]} Na6 {[%emt 0:00:21]} 15. b4 {[%emt 0:00:10]} c5 {[%emt 0:09:04]} 16. Rb1 {[%emt 0:07:11]} Qd8 {[%emt 0:06:33]} 17. Qd2 {[%emt 0:00:50]} Bd7 {[%emt 0:03:26]} 18. Qe3 {[%emt 0:10:13]} Rc8 {[%emt 0:02:22]} 19. b5 {[%emt 0:01:18]} Nc7 {[%emt 0:03:42]} 20. f4 {[%emt 0:00:36]} exf4 {[%emt 0:00:14]} 21. Qxf4 {[%emt 0:00:17]} Ne8 {[%emt 0:00:41]} 22. e5 {[%emt 0:00:57]} Ng7 {[%emt 0:03:31]} 23. g4 {[%emt 0:01:05]} f6 {[%emt 0:05:17]} 24. e6 {[%emt 0:06:20]} g5 {[%emt 0:05:19]} 25. Qg3 {[%emt 0:04:19]} Be8 {[%emt 0:00:05]} 26. Bd3 {[%emt 0:01:14]} Kh8 {[%emt 0:03:14]} 27. Rbe1 {[%emt 0:06:17]} Qa5 {[%emt 0:01:16]} 28. Be4 {[%emt 0:07:26]} Rd8 {[%emt 0:04:33]} 29. h4 {[%emt 0:01:06]} gxh4 {[%emt 0:05:47]} 30. Qxh4 {[%emt 0:02:57]} Bh5 {[%emt 0:00:01]} 31. Re3 {[%emt 0:02:07]} f5 {[%emt 0:00:29]} 32. gxf5 {[%emt 0:01:44]} Rf6 {[%emt 0:01:39]} 33. Rg3 {[%emt 0:00:34]} Rg8 {[%emt 0:00:17]} 34. d6 {[%emt 0:00:19]} Qxc3 {[%emt 0:00:36]} 35. Rxc3 {[%emt 0:01:35]} Nxf5+ {[%emt 0:00:05]} 36. Kh2 {[%emt 0:01:45]} Nxh4 {[%emt 0:00:32]} 37. Rxf6 {[%emt 0:00:05]} exf6 {[%emt 0:00:41]} 38. Rh3 {[%emt 0:02:37]} f5 {[%emt 0:05:34]} 39. Rxh4 {[%emt 0:00:09]} Bg6 {[%emt 0:00:43]} 40. d7 {[%emt 0:00:00]} Rd8 {[%emt 0:00:00]} 41. Bxf5 {[%emt 0:00:31]} 1-0

[Event "6th Cattolica Open 2019"]
[Site "Cattolica"]
[Date "2019.06.13"]
[Round "8.10"]
[White "Vovk, Yuri"]
[Black "Souhardo Basak"]
[Result "1-0"]
[ECO "E93"]
[WhiteElo "2586"]
[BlackElo "2104"]
[Annotator "RC"]
[PlyCount "105"]
[EventDate "2019.06.08"]
[EventType "swiss"]
[EventCountry "ITA"]
[SourceTitle "playchess.com"]
[Source "ChessBase"]
[SourceQuality "1"]
[TimeControl "40/5400+30:900+30"]

1. Nf3 {[%emt 0:07:11]} d6 {[%emt 0:00:00]} 2. d4 {[%emt 0:00:38]} g6 {[%emt 0:00:01]} 3. c4 {[%emt 0:00:59]} Bg7 {[%emt 0:00:06]} 4. Nc3 {[%emt 0:03:43]} Nf6 {[%emt 0:00:09]} 5. e4 {[%emt 0:03:08]} O-O {[%emt 0:00:08]} 6. Be2 {[%emt 0:03:25]} e5 {[%emt 0:00:08]} 7. d5 {[%emt 0:00:03]} Nbd7 {[%emt 0:01:08]} 8. Bg5 {[%emt 0:00:22]} h6 {[%emt 0:01:44]} 9. Bh4 {[%emt 0:00:04]} a6 {[%emt 0:06:13]} 10. O-O {[%emt 0:03:23]} g5 {[%emt 0:05:52]} 11. Bg3 {[%emt 0:00:01]} Nh5 {[%emt 0:00:08]} 12. Ne1 {[%emt 0:00:43]} Nf4 {[%emt 0:00:17]} 13. Bg4 {[%emt 0:04:39]} Nf6 {[%emt 0:02:04]} 14. Bxc8 {[%emt 0:02:31]} Qxc8 {[%emt 0:00:02]} 15. Nc2 {[%emt 0:00:28]} h5 {[%emt 0:10:19]} 16. f3 {[%emt 0:00:48]} Kh8 {[%emt 0:06:15]} 17. Ne3 {[%emt 0:00:30]} Ng8 {[%emt 0:00:52]} 18. Bf2 {[%emt 0:13:23]} Nh6 {[%emt 0:00:31]} 19. Qc2 {[%emt 0:13:02]} Bf6 {[%emt 0:08:53]} 20. Kh1 {[%emt 0:05:27]} Rg8 {[%emt 0:04:15]} 21. Nf5 {[%emt 0:05:02]} Qf8 {[%emt 0:03:04]} 22. Be3 {[%emt 0:02:07]} h4 {[%emt 0:06:40]} 23. g3 {[%emt 0:04:59]} Nh5 {[%emt 0:08:14]} 24. g4 {[%emt 0:02:18]} Nf4 {[%emt 0:00:27]} 25. Qb3 {[%emt 0:02:34]} b6 {[%emt 0:01:37]} 26. Nxh6 {[%emt 0:00:49]} Qxh6 {[%emt 0:00:12]} 27. Qa4 {[%emt 0:00:03]} Qf8 {[%emt 0:02:02]} 28. b4 {[%emt 0:01:42]} a5 {[%emt 0:02:26]} 29. Nb5 {[%emt 0:01:08]} axb4 {[%emt 0:00:29]} 30. Qxb4 {[%emt 0:00:14]} Qe7 {[%emt 0:00:50]} 31. a4 {[%emt 0:00:39]} Ra6 {[%emt 0:00:29]} 32. Ra3 {[%emt 0:03:06]} Rga8 {[%emt 0:00:51]} 33. Rfa1 {[%emt 0:00:13]} Qd8 {[%emt 0:02:55]} 34. Qd2 {[%emt 0:03:54]} Ra5 {[%emt 0:00:37]} 35. Qb2 {[%emt 0:00:43]} Qd7 {[%emt 0:02:16]} 36. Bd2 {[%emt 0:00:20]} R5a6 {[%emt 0:00:05]} 37. a5 {[%emt 0:00:46]} bxa5 {[%emt 0:01:02]} 38. Rxa5 {[%emt 0:01:18]} Rxa5 {[%emt 0:00:13]} 39. Rxa5 {[%emt 0:01:29]} Rxa5 {[%emt 0:00:01]} 40. Bxa5 {[%emt 0:00:00]} c6 {[%emt 0:00:00]} 41. Nc7 {[%emt 0:00:07]} cxd5 {[%emt 0:00:51]} 42. Qb5 {[%emt 0:02:32]} Qe7 {[%emt 0:03:27]} 43. cxd5 {[%emt 0:01:39]} Kh7 {[%emt 0:01:40]} 44. Qc6 {[%emt 0:03:23]} Bg7 {[%emt 0:01:07]} 45. Bb6 {[%emt 0:11:32]} Ne2 {[%emt 0:09:28]} 46. Ne8 {[%emt 0:02:16]} Nd4 {[%emt 0:00:05]} 47. Qc8 {[%emt 0:00:39]} h3 {[%emt 0:03:16]} 48. Bc7 {[%emt 0:01:29]} Nb5 {[%emt 0:01:16]} 49. Bb8 {[%emt 0:02:32]} Bf8 {[%emt 0:00:33]} 50. Qf5+ {[%emt 0:00:36]} Kh6 {[%emt 0:01:56]} 51. Nf6 {[%emt 0:00:09]} Kg7 {[%emt 0:00:09]} 52. Qxg5+ {[%emt 0:00:33]} Kh8 {[%emt 0:00:07]} 53. Qg8# {[%emt 0:00:04]} 1-0

[Event "6th Cattolica Open 2019"]
[Site "Cattolica"]
[Date "2019.06.14"]
[Round "9.1"]
[White "Martinez Alcantara, Jose Eduardo"]
[Black "Basso, Pier Luigi"]
[Result "1/2-1/2"]
[ECO "C67"]
[WhiteElo "2583"]
[BlackElo "2539"]
[Annotator "ChessBase"]
[PlyCount "41"]
[EventDate "2019.06.08"]
[EventType "swiss"]
[EventCountry "ITA"]
[SourceTitle "playchess.com"]
[Source "ChessBase"]
[SourceQuality "1"]
[TimeControl "40/5400+30:900+30"]

1. e4 {[%emt 0:00:00]} e5 {[%emt 0:03:20]} 2. Nf3 {[%emt 0:00:00]} Nc6 {[%emt 0:00:19]} 3. Bb5 {[%emt 0:01:38]} Nf6 {[%emt 0:00:14]} 4. O-O {[%emt 0:02:29]} Nxe4 {[%emt 0:00:11]} 5. Re1 {[%emt 0:01:03]} Nd6 {[%emt 0:00:09]} 6. Nxe5 {[%emt 0:00:04]} Be7 {[%emt 0:00:05]} 7. Bf1 {[%emt 0:02:50]} Nxe5 {[%emt 0:00:11]} 8. Rxe5 {[%emt 0:00:02]} O-O {[%emt 0:00:10]} 9. d4 {[%emt 0:01:35]} Bf6 {[%emt 0:00:14]} 10. Re1 {[%emt 0:04:39]} Nf5 {[%emt 0:01:45]} 11. c3 {[%emt 0:02:22]} d5 {[%emt 0:01:07]} 12. Bf4 {[%emt 0:02:54]} c6 {[%emt 0:01:27]} 13. Nd2 {[%emt 0:05:49]} Nh4 {[%emt 0:03:06]} 14. Bd3 {[%emt 0:03:24]} Bf5 {[%emt 0:01:15]} 15. Bxf5 {[%emt 0:01:54]} Nxf5 {[%emt 0:00:06]} 16. Nf3 {[%emt 0:00:05]} Be7 {[%emt 0:02:10]} 17. Qd3 {[%emt 0:01:10]} g6 {[%emt 0:00:43]} 18. h3 {[%emt 0:01:54]} Bd6 {[%emt 0:00:22]} 19. Bxd6 {[%emt 0:01:37]} Qxd6 {[%emt 0:00:12]} 20. Re2 {[%emt 0:00:46]} Rae8 {[%emt 1:22:54]} 21. Rae1 {[%emt 1:04:15]} 1/2-1/2

[Event "6th Cattolica Open 2019"]
[Site "Cattolica"]
[Date "2019.06.14"]
[Round "9.2"]
[White "Repka, Christopher"]
[Black "Barseghyan, Harutyun"]
[Result "1/2-1/2"]
[ECO "E36"]
[WhiteElo "2482"]
[BlackElo "2495"]
[Annotator "ChessBase"]
[PlyCount "40"]
[EventDate "2019.06.08"]
[EventType "swiss"]
[EventCountry "ITA"]
[SourceTitle "playchess.com"]
[Source "ChessBase"]
[SourceQuality "1"]
[TimeControl "40/5400+30:900+30"]

1. d4 {[%emt 0:07:07]} Nf6 {[%emt 0:00:00]} 2. c4 {[%emt 0:00:06]} e6 {[%emt 0:00:39]} 3. Nc3 {[%emt 0:00:17]} Bb4 {[%emt 0:00:37]} 4. Qc2 {[%emt 0:01:08]} O-O {[%emt 0:02:06]} 5. a3 {[%emt 0:00:03]} Bxc3+ {[%emt 0:00:07]} 6. Qxc3 {[%emt 0:00:03]} d5 {[%emt 0:00:53]} 7. Bg5 {[%emt 0:03:58]} dxc4 {[%emt 0:02:57]} 8. Qxc4 {[%emt 0:00:03]} b6 {[%emt 0:00:07]} 9. Nf3 {[%emt 0:00:38]} Ba6 {[%emt 0:02:04]} 10. Qa4 {[%emt 0:01:36]} c5 {[%emt 0:03:52]} 11. dxc5 {[%emt 0:05:10]} bxc5 {[%emt 0:01:34]} 12. Rd1 {[%emt 0:00:09]} Qb6 {[%emt 0:01:59]} 13. Bxf6 {[%emt 0:00:13]} gxf6 {[%emt 0:00:11]} 14. Rd2 {[%emt 0:00:02]} Nc6 {[%emt 0:01:38]} 15. Qg4+ {[%emt 0:05:25]} Kh8 {[%emt 0:00:42]} 16. Qh4 {[%emt 0:01:38]} Kg7 {[%emt 0:00:18]} 17. Qg3+ {[%emt 0:00:22]} Kh8 {[%emt 0:00:19]} 18. Qh4 {[%emt 0:00:14]} Kg7 {[%emt 0:00:11]} 19. Qg4+ {[%emt 0:05:48]} Kh8 {[%emt 0:00:36]} 20. Qh4 {[%emt 0:00:10]} Kg7 {[%emt 1:19:10]} 1/2-1/2